bitfinex/quotes_SOLUSD_20220104
["timestamp","ask_amount","ask_price","bid_price","bid_amount"]
[1641323893089,3.32990381,168.83,168.67,107.70640786]
[1641323893292,3.32990381,168.83,168.68,1.44850786]
[1641323893490,3.32990381,168.84,168.68,1.70850786]
[1641323893690,3.32990381,168.84,168.69,10.70011215]
[1641323893691,2.57793785,168.82,168.69,10.70011215]
[1641323893890,2.57793785,168.82,168.69,11.20011215]
[1641323894091,2.57793785,168.82,168.69,11.46011215]
[1641323894296,3.32990381,168.85,168.7,24.88]
[1641323894492,3.32990381,168.85,168.7,25.14]
[1641323894692,3.32990381,168.85,168.71,32.01392191]
[1641323894893,3.32990381,168.85,168.71,39.61392191]
[1641323895194,3.32990381,168.85,168.72,23.3223]
[1641323895492,5.76700809,168.85,168.73,2.9062171]
[1641323895693,5.76700809,168.85,168.73,4.2691171]
[1641323895894,5.76700809,168.85,168.73,5.0291171]
[1641323896095,3.32990381,168.85,168.73,5.0291171]
[1641323896696,3.32990381,168.85,168.74,7.1]
[1641323896999,92.7,168.91,168.75,26.26110795]
[1641323897000,3.32990381,168.87,168.75,26.26110795]
[1641323897194,3.32990381,168.87,168.77,2.92075969]
[1641323897396,3.32990381,168.87,168.77,10.52075969]
[1641323897595,3.32990381,168.87,168.77,10.78075969]
[1641323897796,4.93164653,168.91,168.79,38.0]
[1641323897998,4.93164653,168.91,168.81,22.77997947]
[1641323898195,4.93164653,168.91,168.82,7.1]
[1641323898196,4.43164653,168.91,168.82,7.1]
[1641323898395,4.43164653,168.91,168.83,2.7863773]
[1641323898596,2.32614338,168.94,168.83,9.8863773]
[1641323898799,2.32614338,168.94,168.83,10.3863773]
[1641323899198,6.6859969,168.93,168.83,10.3863773]
[1641323900100,6.6859969,168.93,168.83,10.6463773]
[1641323900798,2.41172617,168.93,168.83,10.6463773]
[1641323901199,2.41172617,168.93,168.83,10.1463773]
[1641323901397,2.41172617,168.93,168.83,10.6463773]
[1641323901799,7.1,168.99,168.83,10.6463773]
[1641323902101,7.1,168.99,168.83,112.5873773]
[1641323902699,2.98701318,168.98,168.84,1.3374]
[1641323902899,9.67176677,168.98,168.85,25.46269283]
[1641323903300,9.67176677,168.98,168.85,25.96269283]
[1641323903499,9.67176677,168.98,168.86,2.59733182]
[1641323903799,6.68475359,168.97,168.86,2.59733182]
[1641323903999,6.68475359,168.97,168.86,3.35733182]
[1641323905306,6.68475359,168.97,168.86,4.70373182]
[1641323906710,6.68475359,168.97,168.86,4.44373182]
[1641323908103,6.68475359,168.97,168.86,4.70373182]
[1641323910206,2.98701318,168.98,168.86,4.70373182]
[1641323911306,6.68360219,168.97,168.86,4.70373182]
[1641323911906,2.98701318,168.98,168.86,4.70373182]
[1641323913109,2.98701318,168.98,168.86,4.44373182]
[1641323913511,6.6837554,168.97,168.86,4.44373182]
[1641323914517,6.6837554,168.97,168.86,4.70373182]
[1641323916918,6.6837554,168.97,168.86,11.80373182]
[1641323917119,2.98701318,168.98,168.86,11.80373182]
[1641323917520,2.98701318,168.98,168.86,34.64803182]
[1641323918141,2.98701318,168.98,168.86,34.38803182]
[1641323918542,2.98701318,168.98,168.86,27.28803182]
[1641323918742,3.48701318,168.98,168.86,27.28803182]
[1641323918942,2.98701318,168.98,168.86,27.28803182]
[1641323919544,2.98701318,168.98,168.86,27.54803182]
[1641323919944,2.98701318,168.98,168.86,27.28803182]
[1641323920147,6.6837833,168.97,168.86,27.28803182]
[1641323921547,6.6837833,168.97,168.86,27.54803182]
[1641323923448,2.98701318,168.98,168.86,27.54803182]
[1641323924246,6.683664,168.97,168.86,27.54803182]
[1641323925848,6.683664,168.97,168.86,34.64803182]
[1641323926049,2.98701318,168.98,168.86,34.64803182]
[1641323929251,23.7371,169.02,168.86,34.64803182]
[1641323929451,30.8371,169.02,168.86,34.64803182]
[1641323929652,7.1,169.02,168.86,34.64803182]
[1641323929851,7.1,169.02,168.86,36.09653968]
[1641323930052,7.1,169.02,168.86,34.64803182]
[1641323930256,3.01284208,169.01,168.86,34.64803182]
[1641323931057,3.01284208,169.01,168.86,36.09653968]
[1641323931256,31.197,169.07,168.86,36.09653968]
[1641323931456,31.197,169.07,168.86,43.13753968]
[1641323931457,6.68258039,169.0,168.86,43.13753968]
[1641323932057,6.68258039,169.06,168.86,43.13753968]
[1641323932363,2.52883568,169.05,168.86,52.01423968]
[1641323932558,2.52883568,169.05,168.86,101.94753968]
[1641323933656,6.68258039,169.04,168.86,101.94753968]
[1641323934456,6.68258039,169.04,168.86,43.13753968]
[1641323934757,6.68258039,169.04,168.86,36.09653968]
[1641323936861,7.18258039,169.04,168.86,34.38803182]
[1641323937060,7.1,169.03,168.86,34.38803182]
[1641323937258,1.6726949,169.02,168.86,33.88803182]
[1641323937459,7.1,169.01,168.86,26.78803182]
[1641323937659,31.8738,169.01,168.86,26.78803182]
[1641323937863,32.3738,169.01,168.86,26.78803182]
[1641323938060,39.05638039,169.01,168.86,26.78803182]
[1641323938662,39.05638039,169.01,168.86,27.28803182]
[1641323938962,39.05638039,169.01,168.86,27.54803182]
[1641323939163,1.67078106,168.95,168.86,27.54803182]
[1641323939362,2.52883568,168.94,168.86,27.04803182]
[1641323940769,1.67078106,168.96,168.86,27.54803182]
[1641323941165,1.67078106,168.96,168.86,27.04803182]
[1641323941966,2.89760614,168.95,168.86,27.04803182]
[1641323942166,4.5683872,168.95,168.86,27.04803182]
[1641323942369,4.5683872,168.95,168.86,27.54803182]
[1641323943069,1.67078106,168.94,168.86,27.54803182]
[1641323943569,1.67078106,168.95,168.86,27.54803182]
[1641323944169,1.67078106,168.97,168.86,27.54803182]
[1641323944368,4.15672956,168.97,168.86,27.54803182]
[1641323945971,1.67078106,168.96,168.86,27.54803182]
[1641323946570,1.67078106,168.97,168.86,27.54803182]
[1641323946771,1.67078106,168.97,168.86,32.64203182]
[1641323946970,1.67078106,168.97,168.86,34.09053968]
[1641323947172,1.67078106,168.97,168.87,7.1]
[1641323947371,1.67078106,168.97,168.87,7.6]
[1641323947670,1.67078106,168.96,168.87,7.86]
[1641323947870,1.67078106,168.96,168.88,1.44850786]
[1641323948075,1.67078106,168.96,168.89,33.8036555]
[1641323948272,4.16879079,169.01,168.89,33.8036555]
[1641323948472,4.16879079,169.01,168.89,35.8152555]
[1641323949676,1.67078106,169.01,168.89,35.8152555]
[1641323950077,1.67078106,169.02,168.89,35.8152555]
[1641323950275,1.67078106,169.02,168.9,107.6892]
[1641323950475,1.67078106,169.02,168.9,107.9492]
[1641323950679,1.67078106,169.02,168.9,113.3762]
[1641323950877,3.8720531,169.02,168.9,113.3762]
[1641323951277,1.67078106,169.02,168.9,113.3762]
[1641323951477,1.67078106,169.02,168.91,1.44850786]
[1641323951701,1.67078106,169.04,168.91,1.44850786]
[1641323951898,1.67078106,169.04,168.92,1.2656]
[1641323952298,1.67078106,169.04,168.92,1.7656]
[1641323952499,2.16660878,169.03,168.93,26.40338657]
[1641323953300,2.16660878,169.03,168.93,26.90338657]
[1641323953697,3.83738984,169.03,168.93,26.90338657]
[1641323953897,1.67078106,169.03,168.93,26.90338657]
[1641323954300,1.67078106,169.03,168.93,27.16338657]
[1641323954699,1.67078106,169.03,168.93,26.90338657]
[1641323954902,2.51386986,169.02,168.93,26.90338657]
[1641323955907,2.51386986,169.02,168.93,27.16338657]
[1641323956104,4.18465092,169.02,168.93,27.16338657]
[1641323956304,1.67078106,169.02,168.93,28.61189443]
[1641323956708,1.67078106,169.02,168.93,27.16338657]
[1641323956904,1.67078106,169.05,168.93,27.16338657]
[1641323957306,1.67078106,169.05,168.93,26.40338657]
[1641323957307,24.04559586,169.04,168.93,26.40338657]
[1641323957506,9.38289622,169.04,168.93,26.40338657]
[1641323957708,1.67078106,169.03,168.93,26.40338657]
[1641323957910,2.17078106,169.03,168.93,26.40338657]
[1641323958511,2.17078106,169.03,168.93,28.11189443]
[1641323958711,1.67078106,169.02,168.93,27.16338657]
[1641323959813,3.95367728,169.04,168.93,27.16338657]
[1641323960013,3.95367728,169.04,168.93,34.71738657]
[1641323960216,1.67078106,169.04,168.93,34.71738657]
[1641323960413,1.67078106,169.06,168.94,32.39480786]
[1641323960615,1.67078106,169.06,168.94,109.93560786]
[1641323960812,1.67078106,169.06,168.95,1.44850786]
[1641323961016,1.67078106,169.06,168.97,25.29854497]
[1641323961213,0.02,169.1,168.98,7.1]
[1641323961214,1.67078106,169.07,168.98,7.1]
[1641323961414,1.67078106,169.07,168.98,9.04850786]
[1641323961614,1.67078106,169.07,168.98,7.86]
[1641323962016,2.4164778,169.08,168.98,9.2165]
[1641323962914,1.67078106,169.11,168.98,9.2165]
[1641323963115,1.67078106,169.11,168.99,24.0577]
[1641323963315,1.67078106,169.11,169.0,7.1]
[1641323963517,1.67078106,169.11,169.01,52.56647971]
[1641323963915,2.82069158,169.1,169.02,2.37084793]
[1641323964118,1.67078106,169.11,169.02,2.63084793]
[1641323964315,1.67078106,169.11,169.02,3.13084793]
[1641323964516,1.67078106,169.11,169.02,11.67935579]
[1641323964716,1.67078106,169.11,169.02,12.95905579]
[1641323964916,34.9965833,169.19,169.02,12.95905579]
[1641323964917,1.67078106,169.13,169.02,12.95905579]
[1641323965616,2.37305467,169.15,169.02,12.95905579]
[1641323965816,2.37305467,169.15,169.03,23.6111]
[1641323966019,2.37305467,169.15,169.05,29.17452037]
[1641323966415,2.37305467,169.15,169.05,35.42952037]
[1641323966815,1.67078106,169.17,169.05,36.77502037]
[1641323967020,1.67078106,169.17,169.06,1.44850786]
[1641323967217,1.67078106,169.17,169.05,60.95462037]
[1641323967418,1.67078106,169.17,169.05,56.90812823]
[1641323967821,3.04616541,169.16,169.05,56.90812823]
[1641323969221,3.04616541,169.16,169.05,55.45962037]
[1641323969922,3.04616541,169.16,169.05,56.90812823]
[1641323970121,3.04616541,169.16,169.06,7.1]
[1641323970522,3.04616541,169.16,169.06,13.297]
[1641323971324,3.04616541,169.16,169.06,7.86]
[1641323971923,3.04616541,169.16,169.06,7.6]
[1641323972123,3.04616541,169.16,169.06,0.5]
[1641323972423,3.04616541,169.16,169.05,29.67452037]
[1641323973024,1.67078106,169.15,169.05,29.67452037]
[1641323973424,1.67078106,169.15,169.06,1.44850786]
[1641323973626,1.67078106,169.15,169.06,14.00050786]
[1641323973824,1.67078106,169.24,169.06,47.99904696]
[1641323974027,5.0305833,169.23,169.07,2.74510786]
[1641323974228,2.97689514,169.22,169.08,7.1]
[1641323974428,2.97689514,169.22,169.08,9.04850786]
[1641323974627,2.97689514,169.22,169.09,24.12650786]
[1641323974827,2.97689514,169.22,169.11,2.62003095]
[1641323975028,2.97689514,169.22,169.12,29.66791755]
[1641323975427,2.97689514,169.22,169.12,30.42791755]
[1641323975829,25.0689,169.26,169.12,30.42791755]
[1641323976830,2.58715368,169.25,169.12,30.42791755]
[1641323977332,74.91,169.3,169.13,25.53810786]
[1641323977533,74.91,169.3,169.13,38.62610786]
[1641323977732,75.41,169.3,169.14,1.44850786]
[1641323977934,75.41,169.3,169.15,7.1]
[1641323978132,75.41,169.3,169.16,23.7953]
[1641323978333,75.41,169.3,169.17,11.14412875]
[1641323978334,2.96328661,169.29,169.17,11.14412875]
[1641323978533,2.96328661,169.29,169.17,12.85263661]
[1641323978735,2.96328661,169.29,169.17,13.35263661]
[1641323978934,2.96328661,169.29,169.17,11.90412875]
[1641323979936,79.886,169.34,169.31,0.50328661]
[1641323980138,1.2574,169.39,169.32,6.06439992]
[1641323980338,8.4382,169.42,169.32,6.06439992]
[1641323980541,1.67078106,169.39,169.32,6.32439992]
[1641323980738,1.67078106,169.39,169.32,11.50839992]
[1641323980937,1.67078106,169.39,169.33,26.32510953]
[1641323981138,1.67078106,169.39,169.33,33.42510953]
[1641323981344,0.02,169.44,169.33,34.18510953]
[1641323981540,0.02,169.44,169.34,1.44850786]
[1641323981739,0.02,169.44,169.35,7.1]
[1641323982037,0.02,169.44,169.35,7.86]
[1641323982239,1.04290963,169.46,169.36,2.97433568]
[1641323982439,1.04290963,169.46,169.36,3.47433568]
[1641323982643,1.04290963,169.46,169.36,3.73433568]
[1641323983442,0.29646288,169.47,169.36,3.73433568]
[1641323984544,0.87987691,169.46,169.36,3.73433568]
[1641323985142,0.87987691,169.46,169.36,3.47433568]
[1641323986269,1.67078106,169.46,169.36,3.47433568]
[1641323986473,1.67078106,169.46,169.37,8.54850786]
[1641323986870,11.39297314,169.47,169.37,7.1]
[1641323987072,11.39297314,169.47,169.34,8.54850786]
[1641323987272,11.39297314,169.47,169.34,7.6]
[1641323987477,11.65297314,169.47,169.34,7.1]
[1641323987671,1.67078106,169.46,169.33,24.15462006]
[1641323987871,2.90850542,169.46,169.33,26.74987761]
[1641323988071,7.1,169.45,169.31,0.50328661]
[1641323988472,1.44850786,169.44,169.31,0.50328661]
[1641323988672,8.77078106,169.43,169.31,0.50328661]
[1641323988873,9.27078106,169.43,169.31,0.50328661]
[1641323989074,8.77078106,169.43,169.31,0.50328661]
[1641323989273,8.77078106,169.43,169.31,8.661e-05]
[1641323989473,10.97928892,169.43,169.31,8.661e-05]
[1641323990074,1.67078106,169.41,169.31,8.661e-05]
[1641323990274,7.1,169.4,169.31,8.661e-05]
[1641323990477,7.86,169.4,169.31,8.661e-05]
[1641323990677,1.67078106,169.38,169.31,8.661e-05]
[1641323990876,2.17078106,169.38,169.31,8.661e-05]
[1641323991077,3.87928892,169.38,169.31,8.661e-05]
[1641323991283,3.11928892,169.38,169.31,8.661e-05]
[1641323991477,1.67078106,169.37,169.31,8.661e-05]
[1641323991879,2.17078106,169.37,169.31,8.661e-05]
[1641323992081,1.67078106,169.37,169.31,8.661e-05]
[1641323992281,1.67078106,169.39,169.31,8.661e-05]
[1641323992477,8.77078106,169.39,169.31,8.661e-05]
[1641323992678,9.27078106,169.39,169.31,8.661e-05]
[1641323993178,1.67078106,169.41,169.31,8.661e-05]
[1641323993778,1.67078106,169.44,169.31,8.661e-05]
[1641323993981,16.35810914,169.44,169.31,3.03977471]
[1641323994379,14.68732808,169.44,169.31,3.79977471]
[1641323994780,1.67078106,169.46,169.31,3.79977471]
[1641323995279,102.7237636,169.47,169.31,3.79977471]
[1641323995581,96.1237636,169.47,169.32,7.1]
[1641323995781,95.6237636,169.47,169.32,7.6]
[1641323995979,95.6237636,169.47,169.32,7.86]
[1641323996785,93.95298254,169.47,169.32,7.86]
[1641323997382,93.95298254,169.47,169.32,0.76]
[1641323997585,1.25298254,169.47,169.32,0.5]
[1641323997785,1.25298254,169.47,169.31,83.21017471]
[1641323998084,20.83833622,169.46,169.32,7.1]
[1641323998484,21.33833622,169.46,169.32,7.6]
[1641323998685,0.76,169.46,169.32,7.6]
[1641323998884,0.5,169.46,169.32,7.6]
[1641323999088,1.75298254,169.47,169.32,7.6]
[1641323999785,29.61870769,169.46,169.32,7.6]
[1641323999985,29.61870769,169.46,169.32,7.86]
[1641324000285,31.82721555,169.46,169.32,7.6]
[1641324000487,31.82721555,169.46,169.32,7.1]
[1641324000684,31.56721555,169.46,169.32,7.1]
[1641324000885,30.11870769,169.46,169.32,7.6]
[1641324001686,30.11870769,169.46,169.32,7.86]
[1641324002087,30.11870769,169.46,169.32,7.6]
[1641324002489,0.76,169.46,169.32,7.6]
[1641324002689,0.5,169.46,169.32,7.6]
[1641324002891,1.75298254,169.47,169.32,7.6]
[1641324003088,1.51298254,169.47,169.32,7.6]
[1641324003289,1.44850786,169.46,169.32,7.6]
[1641324003488,22.51652699,169.45,169.32,7.86]
[1641324003889,1.44850786,169.44,169.32,7.86]
[1641324004188,0.5,169.44,169.32,0.26]
[1641324004391,0.76,169.44,169.32,0.76]
[1641324004590,0.76,169.44,169.32,0.5]
[1641324004790,0.26,169.44,169.32,0.5]
[1641324004990,26.39581591,169.45,169.31,3.79977471]
[1641324005589,0.5,169.45,169.31,3.79977471]
[1641324005790,0.5,169.45,169.31,18.96228257]
[1641324005990,1.67078106,169.46,169.31,18.96228257]
[1641324006291,1.67078106,169.46,169.31,17.51377471]
[1641324006691,1.25298254,169.47,169.31,17.51377471]
[1641324007293,1.75298254,169.47,169.31,17.51377471]
[1641324007494,1.25298254,169.47,169.32,1.3356]
[1641324007695,1.75298254,169.47,169.32,1.3356]
[1641324007892,1.75298254,169.47,169.32,76.5965]
[1641324010492,1.75298254,169.47,169.32,76.3365]
[1641324011293,1.75298254,169.47,169.32,75.8365]
[1641324011996,1.75298254,169.47,169.32,76.0965]
[1641324012195,1.75298254,169.47,169.32,77.54500786]
[1641324012395,1.75298254,169.47,169.32,76.0965]
[1641324012794,1.75298254,169.47,169.32,76.5965]
[1641324013394,3.4614904,169.47,169.32,0.76]
[1641324013596,3.4614904,169.47,169.32,0.5]
[1641324013796,3.4614904,169.47,169.31,10.63977471]
[1641324013995,12.23227146,169.47,169.31,10.63977471]
[1641324014795,1.67078106,169.44,169.31,10.63977471]
[1641324014996,18.27619358,169.43,169.31,10.63977471]
[1641324015999,0.26,169.44,169.31,10.89977471]
[1641324016197,0.26,169.44,169.31,85.83127471]
[1641324016397,2.43078106,169.45,169.31,7.60008661]
[1641324016599,2.43078106,169.45,169.31,8.661e-05]
[1641324016600,3.11928892,169.44,169.31,8.661e-05]
[1641324016799,7.1,169.43,169.31,8.661e-05]
[1641324016999,75.6057,169.42,169.31,8.661e-05]
[1641324017202,7.1,169.41,169.31,8.661e-05]
[1641324017399,9.04850786,169.41,169.31,8.661e-05]
[1641324017699,1.44850786,169.4,169.31,8.661e-05]
[1641324017902,9.04850786,169.4,169.31,8.661e-05]
[1641324018104,7.6,169.4,169.31,8.661e-05]
[1641324018504,7.86,169.4,169.31,8.661e-05]
[1641324019729,7.6,169.4,169.31,8.661e-05]
[1641324020325,7.1,169.4,169.31,8.661e-05]
[1641324020725,7.6,169.4,169.31,8.661e-05]
[1641324020924,7.1,169.4,169.31,8.661e-05]
[1641324021328,7.6,169.4,169.31,8.661e-05]
[1641324021526,7.86,169.4,169.31,8.661e-05]
[1641324021931,1.44850786,169.39,169.31,8.661e-05]
[1641324022129,8.54850786,169.39,169.31,8.661e-05]
[1641324022332,9.30850786,169.39,169.31,8.661e-05]
[1641324022531,1.44850786,169.38,169.31,8.661e-05]
[1641324022730,7.1,169.37,169.31,8.661e-05]
[1641324022929,7.6,169.37,169.31,8.661e-05]
[1641324023130,1.44850786,169.36,169.31,8.661e-05]
[1641324023330,7.1,169.35,169.31,8.661e-05]
[1641324023931,7.6,169.35,169.31,8.661e-05]
[1641324024130,7.86,169.35,169.31,8.661e-05]
[1641324024532,9.30850786,169.35,169.31,8.661e-05]
[1641324025831,8.86851339,169.31,169.16,2.39089823]
[1641324026032,7.1,169.3,169.1,1.3622]
[1641324026235,8.54850786,169.3,169.1,1.8622]
[1641324026531,9.30850786,169.3,169.1,1.8622]
[1641324026733,28.75028869,169.29,169.11,26.6733264]
[1641324026934,7.1,169.28,169.11,26.6733264]
[1641324027134,7.1,169.28,169.11,29.43140994]
[1641324027337,7.36,169.28,169.11,29.43140994]
[1641324027541,7.36,169.28,169.11,29.17140994]
[1641324027739,1.67078106,169.27,169.09,72.4258]
[1641324027938,7.1,169.26,169.07,10.5634391]
[1641324028239,8.54850786,169.26,169.04,95.5560663]
[1641324028438,8.80850786,169.26,169.04,95.5560663]
[1641324028638,14.81469699,169.25,169.05,27.03164958]
[1641324028839,7.1,169.24,169.05,29.27983159]
[1641324029038,7.1,169.24,169.06,12.01194696]
[1641324029039,7.36,169.24,169.06,12.01194696]
[1641324029538,7.36,169.24,169.08,2.60531282]
[1641324029939,8.80850786,169.24,169.08,2.60531282]
[1641324030539,8.54850786,169.24,169.08,2.60531282]
[1641324030741,7.1,169.24,169.08,2.60531282]
[1641324031140,7.1,169.24,169.08,2.86531282]
[1641324031541,8.54850786,169.24,169.08,2.86531282]
[1641324031841,7.1,169.24,169.08,2.86531282]
[1641324032040,7.36,169.24,169.08,2.60531282]
[1641324032241,8.80850786,169.24,169.08,2.60531282]
[1641324032646,8.80850786,169.24,169.02,45.6639]
[1641324032841,8.80850786,169.24,169.01,94.18464696]
[1641324033041,8.80850786,169.24,169.01,92.7361391]
[1641324033643,1.67078106,169.18,169.02,30.33125205]
[1641324033843,7.1,169.17,169.02,30.33125205]
[1641324034045,14.81469699,169.16,169.02,2.75093454]
[1641324034343,14.81469699,169.16,169.05,2.86159297]
[1641324034542,14.81469699,169.16,169.05,3.12159297]
[1641324035345,14.81469699,169.16,169.05,0.26]
[1641324035545,14.81469699,169.16,169.04,92.96]
[1641324035745,14.81469699,169.16,169.04,0.26]
[1641324035945,15.07469699,169.16,169.01,75.0727]
[1641324036546,7.1,169.15,169.02,2.52075228]
[1641324036945,7.36,169.15,169.02,2.52075228]
[1641324037752,7.1,169.15,169.06,92.7]
[1641324037952,16.48547805,169.16,169.07,2.9157387]
[1641324038148,1.67078106,169.16,169.07,2.9157387]
[1641324038760,1.67078106,169.15,169.07,2.9157387]
[1641324038952,1.67078106,169.15,169.07,3.1757387]
[1641324039153,22.76914774,169.18,169.07,3.1757387]
[1641324041658,23.02914774,169.18,169.07,3.1757387]
[1641324041857,23.02914774,169.18,169.07,2.9157387]
[1641324042258,7.1,169.17,169.07,2.9157387]
[1641324043259,7.1,169.17,169.07,3.1757387]
[1641324045580,7.1,169.17,169.07,0.26]
[1641324045983,7.36,169.17,169.04,74.6427]
[1641324046581,9.03078106,169.17,169.04,77.21449515]
[1641324046983,9.03078106,169.17,169.04,2.83179515]
[1641324047182,8.77078106,169.17,169.04,2.83179515]
[1641324047383,1.67078106,169.16,169.04,2.83179515]
[1641324047584,1.67078106,169.16,169.06,25.07295947]
[1641324047987,1.67078106,169.16,169.06,26.78146733]
[1641324048185,22.76914774,169.18,169.07,2.1447596]
[1641324048587,22.76914774,169.18,169.07,2.4047596]
[1641324049786,22.76914774,169.18,169.07,0.26]
[1641324049986,23.02914774,169.18,169.04,1.5474]
[1641324050786,23.02914774,169.18,169.05,2.98555139]
[1641324050986,7.1,169.17,169.05,3.24555139]
[1641324051389,7.1,169.17,169.05,27.66370466]
[1641324052586,7.1,169.17,169.05,3.24555139]
[1641324053488,7.1,169.17,169.05,2.98555139]
[1641324055495,7.36,169.17,169.05,2.98555139]
[1641324056798,7.36,169.17,169.05,3.24555139]
[1641324058204,7.36,169.17,169.05,0.26]
[1641324058402,7.36,169.17,168.98,73.13]
[1641324058599,1.76151356,169.16,168.97,92.7]
[1641324058799,7.1,169.15,168.91,17.6634391]
[1641324059100,20.79583794,169.13,168.93,27.73895945]
[1641324059301,7.1,169.12,168.93,30.78004195]
[1641324059499,72.9336,169.11,168.94,1.3652]
[1641324059703,7.1,169.1,168.94,1.3652]
[1641324059900,22.76914774,169.09,168.94,1.6252]
[1641324060106,30.12914774,169.09,168.94,47.5259]
[1641324061403,30.12914774,169.09,168.94,1.3652]
[1641324061702,31.5776556,169.09,168.94,0.26]
[1641324061901,37.7406556,169.09,168.94,0.26]
[1641324062101,37.7406556,169.09,168.93,3.3010825]
[1641324062301,37.7406556,169.09,168.93,33.85711272]
[1641324062504,37.7406556,169.09,168.93,28.5951825]
[1641324062704,36.29214774,169.09,168.93,28.5951825]
[1641324062903,37.7406556,169.09,168.88,31.4184]
[1641324063107,37.7406556,169.09,168.89,79.0792]
[1641324063906,8.8821,169.07,168.9,2.24722414]
[1641324064136,20.79583794,169.05,168.9,2.24722414]
[1641324064338,7.1,169.04,168.9,2.24722414]
[1641324064535,7.36,169.04,168.9,2.24722414]
[1641324065138,7.36,169.04,168.89,79.0792]
[1641324066137,7.36,169.04,168.89,82.00825881]
[1641324066637,8.80850786,169.04,168.89,82.00825881]
[1641324066937,1.67078106,169.03,168.89,82.00825881]
[1641324067137,7.1,169.02,168.83,7.1]
[1641324067337,8.54850786,169.02,168.89,92.7]
[1641324067538,8.80850786,169.02,168.89,92.7]
[1641324067739,17.69330786,169.02,168.89,92.7]
[1641324067937,1.67078106,169.01,168.89,92.7]
[1641324068139,7.1,169.0,168.89,92.7]
[1641324068540,9.03078106,169.0,168.89,92.7]
[1641324069140,10.47928892,169.0,168.89,92.7]
[1641324069341,10.97928892,169.0,168.89,92.7]
[1641324070140,10.97928892,169.0,168.85,3.04656087]
[1641324070442,20.79583794,168.97,168.85,3.04656087]
[1641324070640,7.1,168.96,168.85,3.04656087]
[1641324071043,7.36,168.96,168.85,3.04656087]
[1641324071640,7.36,168.96,168.85,3.30656087]
[1641324072643,7.1,168.96,168.85,3.30656087]
[1641324073343,8.77078106,169.0,168.85,3.30656087]
[1641324073545,8.77078106,169.0,168.85,8.45356087]
[1641324073546,7.1,169.0,168.85,8.45356087]
[1641324073944,1.67078106,169.01,168.86,7.1]
[1641324074144,1.67078106,169.01,168.88,2.44416869]
[1641324074442,12.41902606,169.05,168.88,41.52008082]
[1641324074443,30.87349404,169.04,168.88,41.52008082]
[1641324074643,30.87349404,169.04,168.89,23.6648]
[1641324075042,30.87349404,169.04,168.89,23.9248]
[1641324075245,30.87349404,169.04,168.89,26.4806]
[1641324075446,38.23349404,169.04,168.89,26.2206]
[1641324076047,39.9042751,169.04,168.89,26.2206]
[1641324076848,41.35278296,169.04,168.89,2.8158]
[1641324077246,41.35278296,169.04,168.89,2.5558]
[1641324077446,41.35278296,169.04,168.88,2.44416869]
[1641324077647,1.67078106,169.02,168.88,2.44416869]
[1641324077846,12.69149164,169.0,168.88,2.44416869]
[1641324078046,20.05149164,169.0,168.88,2.44416869]
[1641324078847,20.55149164,169.0,168.88,2.44416869]
[1641324079049,20.05149164,169.0,168.88,2.44416869]
[1641324079549,20.05149164,169.0,168.88,2.70416869]
[1641324079849,20.05149164,169.0,168.88,0.26]
[1641324080048,20.05149164,169.0,168.87,103.0909]
[1641324080948,20.05149164,169.0,168.88,2.20676059]
[1641324081153,21.7222727,169.0,168.88,2.20676059]
[1641324081348,21.7222727,169.0,168.88,2.46676059]
[1641324081747,19.79149164,169.0,168.88,2.46676059]
[1641324081950,20.05149164,169.0,168.88,2.46676059]
[1641324082148,19.79149164,169.0,168.88,2.46676059]
[1641324082550,20.29149164,169.0,168.88,2.46676059]
[1641324082752,7.6,169.0,168.88,2.46676059]
[1641324082949,1.67078106,169.03,168.88,9.56676059]
[1641324083150,1.67078106,169.03,168.89,24.2264]
[1641324083550,1.67078106,169.04,168.89,24.4864]
[1641324083754,25.79129946,169.03,168.89,24.4864]
[1641324084550,26.05129946,169.03,168.89,24.4864]
[1641324084952,34.59980732,169.03,168.89,0.26]
[1641324085353,34.59980732,169.03,168.88,2.46676059]
[1641324085755,36.01058838,169.03,168.88,2.46676059]
[1641324086355,36.01058838,169.03,168.89,25.0134]
[1641324086553,36.01058838,169.03,168.89,25.2734]
[1641324086753,1.67078106,169.02,168.89,25.2734]
[1641324086953,7.1,169.01,168.89,25.2734]
[1641324087455,7.86,169.01,168.89,25.2734]
[1641324089855,7.86,169.01,168.89,54.31760205]
[1641324090557,7.1,169.01,168.89,25.2734]
[1641324090956,7.1,169.01,168.89,25.7734]
[1641324091155,7.1,169.01,168.89,25.2734]
[1641324091557,7.1,169.01,168.89,48.77079593]